[Event "OEISM 0818 BLMM"]
[Site "austriablmm"]
[Date "2020.12.12"]
[Round "7"]
[White "Blumenlaus"]
[Black "Daniel05"]
[Result "1-0"]
[WhiteElo "1817"]
[BlackElo "1865"]
[Annotator "NA"]
[PlyCount "101"]
[EventDate "2020.12.12"]
[EventType "blitz"]
[TimeControl "600+3"]

1. d4 {[%emt 0:00:24]} Nf6 {[%emt 0:00:03]} 2. c4 {[%emt 0:00:16]} e6 {[%emt 0:00:01]} 3. Nf3 {[%emt 0:00:06]} c5 {[%emt 0:00:01]} 4. g3 {[%emt 0:00:02]} cxd4 {[%emt 0:00:03]} 5. Nxd4 {[%emt 0:00:00]} Nc6 {[%emt 0:00:01]} 6. Bg2 {[%emt 0:00:02]} Qb6 {[%emt 0:00:09]} 7. Nxc6 {[%emt 0:00:04]} bxc6 {[%emt 0:00:05]} 8. O-O {[%emt 0:00:02]} Be7 {[%emt 0:01:09]} 9. Nc3 {[%emt 0:00:08]} O-O {[%emt 0:00:11]} 10. e4 {[%emt 0:00:06]} d6 {[%emt 0:00:10]} 11. b3 {[%emt 0:00:30]} e5 {[%emt 0:00:10]} 12. Ba3 {[%emt 0:00:03]} Bg4 {[%emt 0:00:11]} 13. Qc2 {[%emt 0:00:29]} Rfd8 {[%emt 0:00:37]} 14. h3 {[%emt 0:00:11]} Be6 {[%emt 0:00:02]} 15. Rfd1 {[%emt 0:00:10]} Bf8 {[%emt 0:00:03]} 16. c5 {[%emt 0:00:06]} Qa5 {[%emt 0:01:36]} 17. Na4 {[%emt 0:00:29]} d5 {[%emt 0:00:05]} 18. exd5 {[%emt 0:00:12]} Nxd5 {[%emt 0:00:26]} 19. Bb2 {[%emt 0:00:21]} f6 {[%emt 0:00:15]} 20. a3 {[%emt 0:00:07]} Qc7 {[%emt 0:00:27]} 21. b4 {[%emt 0:00:32]} Rab8 {[%emt 0:00:25]} 22. Nc3 {[%emt 0:00:05]} a5 {[%emt 0:00:18]} 23. Nxd5 {[%emt 0:00:14]} cxd5 {[%emt 0:00:03]} 24. Bc3 {[%emt 0:00:19]} Kh8 {[%emt 0:00:59] Daniel05 bietet Remis} 25. Be1 {[%emt 0:00:48]} d4 {[%emt 0:00:47]} 26. Rac1 {[%emt 0:00:34]} Bd5 {[%emt 0:00:08]} 27. Bxd5 {[%emt 0:00:09]} Rxd5 {[%emt 0:00:00]} 28. Qc4 {[%emt 0:00:04]} Qc6 {[%emt 0:00:09]} 29. h4 {[%emt 0:00:33]} Rdd8 {[%emt 0:00:18]} 30. bxa5 {[%emt 0:00:30]} Rb5 {[%emt 0:01:09]} 31. Bb4 {[%emt 0:00:09]} Rdb8 {[%emt 0:00:02]} 32. Rd2 {[%emt 0:00:23]} g6 {[%emt 0:00:11]} 33. Rb2 {[%emt 0:00:05]} Rxa5 {[%emt 0:00:14]} 34. Bxa5 {[%emt 0:00:18]} Rxb2 {[%emt 0:00:00]} 35. Qf7 {[%emt 0:00:01]} Bh6 {[%emt 0:00:41]} 36. Rf1 {[%emt 0:00:28]} Qxc5 {[%emt 0:00:16]} 37. Qxf6+ {[%emt 0:00:07]} Bg7 {[%emt 0:00:01]} 38. Qd8+ {[%emt 0:00:05]} Qf8 {[%emt 0:00:04]} 39. Qd5 {[%emt 0:00:09]} Re2 {[%emt 0:00:08]} 40. Bb4 {[%emt 0:00:04]} Qe8 {[%emt 0:00:02]} 41. a4 {[%emt 0:00:06]} h6 {[%emt 0:00:11]} 42. a5 {[%emt 0:00:07]} Rb2 {[%emt 0:00:03]} 43. Bc5 {[%emt 0:00:14]} Rb5 {[%emt 0:00:03]} 44. Ra1 {[%emt 0:00:24]} Qc8 {[%emt 0:00:05]} 45. a6 {[%emt 0:00:10]} Rxc5 {[%emt 0:00:03]} 46. Qxc5 {[%emt 0:00:01]} Qxc5 {[%emt 0:00:00]} 47. a7 {[%emt 0:00:01]} Qc6 {[%emt 0:00:09]} 48. a8=Q+ {[%emt 0:00:07]} Qxa8 {[%emt 0:00:01]} 49. Rxa8+ {[%emt 0:00:01]} Kh7 {[%emt 0:00:00] Daniel05 bietet Remis} 50. Kf1 {[%emt 0:00:03]} h5 {[%emt 0:00:03]} 51. Ke2 {[%emt 0:00:02] Zeit '} 1-0